Workbook

Sheet Ark1
S2: Sådan gør du!
S4: 1) | T4: Indtast dine indtægter og udgifter
C5: Budgetskemaet er udarbejdet af excelkursus.com | S5: 2) | T5: Hvis dine udgifter ikke er nævnt som en post, så skriv dem ved "post 1", "post 2" osv. Hvis du mangler plads så tryk på knappen til venstre
G6: Privatbudget 2014
C7: Indtægter | D7: Januar | E7: Februar | F7: Marts | G7: April | H7: Maj | I7: Juni | J7: Juli | K7: August | L7: September | M7: Oktober | N7: November | O7: December | P7: Hele året
C8: Løn efter skat | D8: 18000 | E8: 18000 | F8: 18000 | G8: 18000 | H8: 18000 | I8: 18000 | J8: 18000 | K8: 18000 | L8: 18000 | M8: 18000 | N8: 18000 | O8: 18000 | P8: =SUM(D8:O8) -> 216000 | S8: 3) | T8: De celler der er grå skal du selv udfylde, de hvide udregner skemaet selv
C9: Anden indtægt | P9: =SUM(D9:O9) -> 0
C10: Total | D10: =SUM(D8:D9) -> 18000 | E10: =SUM(E8:E9) -> 18000 | F10: 18000 | G10: 18000 | H10: 18000 | I10: 18000 | J10: 18000 | K10: 18000 | L10: 18000 | M10: 18000 | N10: 18000 | O10: 18000 | P10: =SUM(D10:O10) -> 216000 | S10: 4) | T10: Se hvor hurtigt du kan spare op til det du vil købe i modellen nedenfor!
C12: Udgifter | D12: Januar | E12: Februar | F12: Marts | G12: April | H12: Maj | I12: Juni | J12: Juli | K12: August | L12: September | M12: Oktober | N12: November | O12: December | P12: Hele året
C13: Husleje | D13: 7500 | E13: 7500 | F13: 7500 | G13: 7500 | H13: 7500 | I13: 7500 | J13: 7500 | K13: 7500 | L13: 7500 | M13: 7500 | N13: 7500 | O13: 7500 | P13: =SUM(D13:O13) -> 90000
C14: Mad | D14: 5600 | E14: 5600 | F14: 5600 | G14: 5600 | H14: 5600 | I14: 5600 | J14: 5600 | K14: 5600 | L14: 5600 | M14: 5600 | N14: 5600 | O14: 5600 | P14: 67200 | T14: Hvad sparer du op til? | U14: Rejse
C15: El | E15: 1100 | H15: 1100 | K15: 1100 | N15: 1100 | P15: 4400
C16: Varme | D16: 850 | E16: 850 | F16: 850 | G16: 850 | H16: 850 | I16: 850 | J16: 850 | K16: 850 | L16: 850 | M16: 850 | N16: 850 | O16: 850 | P16: 10200 | T16: Hvad koster det? | U16: 10000
C17: Vand | D17: 187 | E17: 187 | F17: 187 | G17: 187 | H17: 187 | I17: 187 | J17: 187 | K17: 187 | L17: 187 | M17: 187 | N17: 187 | O17: 187 | P17: 2244 | T17: Gennemsnitlig opsparing pr. måned | U17: =+AVERAGE(D30:O30) -> 1475
C18: Mobilabonnement | D18: 249 | E18: 249 | F18: 249 | G18: 249 | H18: 249 | I18: 249 | J18: 249 | K18: 249 | L18: 249 | M18: 249 | N18: 249 | O18: 249 | P18: 2988
C19: TV-pakke | D19: 1467 | G19: 1467 | J19: 1467 | M19: 1467 | P19: 5868
C20: Forsikring | F20: 1400 | I20: 1400 | L20: 1400 | O20: 1400 | P20: 5600 | T20: Du har råd til den/det efter så mange måneder= | U20: =+ROUNDUP(U23,) -> 7
C21: Internet | D21: 249 | E21: 249 | F21: 249 | G21: 249 | H21: 249 | I21: 249 | J21: 249 | K21: 249 | L21: 249 | M21: 249 | N21: 249 | O21: 249 | P21: =SUM(D21:O21) -> 2988
C22: Post 1 | P22: 0
C23: Post 2 | P23: =SUM(D23:O23) -> 0 | U23: =+U16/U17 -> 6.779661017
C24: Post 3… | P24: =SUM(D24:O24) -> 0
C25: Post 4… | P25: 0
C26: Total | D26: =SUM(D13:D25) -> 16102 | E26: 15735 | F26: 16035 | G26: 16102 | H26: 15735 | I26: 16035 | J26: 16102 | K26: =SUM(K13:K25) -> 15735 | L26: 16035 | M26: 16102 | N26: 15735 | O26: =SUM(O13:O25) -> 16035 | P26: =SUM(D26:O26) -> 191488
C28: Overblik | D28: Januar | E28: Februar | F28: Marts | G28: April | H28: Maj | I28: Juni | J28: Juli | K28: August | L28: September | M28: Oktober | N28: November | O28: December | P28: Hele året
C29: Overskud | D29: =+D10-D26 -> 1898 | E29: 2265 | F29: 1965 | G29: 1898 | H29: 2265 | I29: 1965 | J29: 1898 | K29: 2265 | L29: 1965 | M29: 1898 | N29: 2265 | O29: 1965 | P29: =SUM(D29:O29) -> 24512
C30: Hvor meget af dette vil du opspare? | D30: 1500 | E30: 2200 | F30: 500 | G30: 1500 | H30: 1500 | I30: 1500 | J30: 1500 | K30: 1500 | L30: 1500 | M30: 1500 | N30: 1500 | O30: 1500 | P30: =SUM(D30:O30) -> 17700
C31: Restbeløb | D31: =+D29-D30 -> 398 | E31: 65 | F31: 1465 | G31: 398 | H31: 765 | I31: 465 | J31: 398 | K31: 765 | L31: 465 | M31: 398 | N31: 765 | O31: 465 | P31: =SUM(D31:O31) -> 6812
C32: Samlet opsparing | D32: =+D30 -> 1500 | E32: =+D32+E30 -> 3700 | F32: 4200 | G32: 5700 | H32: 7200 | I32: 8700 | J32: 10200 | K32: 11700 | L32: 13200 | M32: 14700 | N32: 16200 | O32: 17700 | P32: =+O32 -> 17700

Sheet Ark2

Sheet Ark3
A1: Januar
A2: Februar
A3: Marts
A4: April
A5: Maj
A6: Juni
A7: Juli
A8: August
A9: September
A10: Oktober
A11: November
A12: December
